fUSD/lending_fUSD_20240423
["ID","MTS","AMOUNT","RATE_DAILY","PERIOD"]
[323265675,1713857446755,-363.19441327,0.00011997,2]
[323265676,1713857446765,-500.0,0.00011997,2]
[323265677,1713857446774,-500.0,0.00011997,2]
[323265678,1713857446783,-609.73891185,0.00011997,2]
[323265679,1713857446792,-790.63,0.00011997,2]
[323265680,1713857446801,-500.0,0.00011997,2]
[323265681,1713857446811,-592.1288169,0.00011997,2]
[323265682,1713857446820,-500.0,0.00011997,2]
[323265683,1713857446829,-1403.6,0.00011997,2]
[323265684,1713857446838,-502.35800144,0.00011997,2]
[323265685,1713857446849,-500.0,0.00011997,2]
[323265686,1713857446860,-500.0,0.00011997,2]
[323265687,1713857446870,-500.0,0.00011997,2]
[323265688,1713857446879,-566.83,0.00011997,2]
[323265689,1713857446889,-1078.51,0.00011997,2]
[323265690,1713857446898,-478.2140512,0.00011997,2]
[323265691,1713857446907,-500.0,0.00011997,2]
[323265692,1713857446919,-1810.16,0.00011997,2]
[323265693,1713857446927,-577.44849648,0.00011997,2]
[323265694,1713857446937,-614.56,0.00011997,2]
[323265695,1713857446946,-198.29636428,0.00011997,2]
[323265696,1713857446955,-744.51,0.00011997,2]
[323265697,1713857446964,-500.0,0.00011997,2]
[323265698,1713857446974,-500.0,0.00011997,2]
[323265699,1713857446983,-500.0,0.00011997,2]
[323265700,1713857446992,-348.36888425,0.00011997,2]
[323265701,1713857447002,-500.0,0.00011997,2]
[323265702,1713857447011,-666.87,0.00011997,2]
[323265703,1713857447020,-500.0,0.00011997,2]
[323265704,1713857447030,-500.0,0.00011997,2]
[323265705,1713857447039,-500.0,0.00011997,2]
[323265706,1713857447048,-500.0,0.00011997,2]
[323265707,1713857447058,-500.0,0.00011997,2]
[323265708,1713857447067,-500.0,0.00011997,2]
[323265709,1713857447076,-725.95,0.00011997,2]
[323265710,1713857447085,-500.0,0.00011997,2]
[323265711,1713857447095,-500.0,0.00011997,2]
[323265712,1713857447104,-500.0,0.00011997,2]
[323265713,1713857447114,-500.0,0.00011997,2]
[323265714,1713857447123,-500.0,0.00011997,2]
[323265715,1713857447132,-500.0,0.00011997,2]
[323265716,1713857447142,-500.0,0.00011997,2]
[323265717,1713857447151,-565.67,0.00011997,2]
[323265718,1713857447160,-500.0,0.00011997,2]
[323265719,1713857447170,-500.0,0.00011997,2]
[323265720,1713857447179,-500.0,0.00011997,2]
[323265721,1713857447188,-500.0,0.00011997,2]
[323265722,1713857447198,-500.0,0.00011997,2]
[323265723,1713857447207,-266.4927549,0.00011997,2]
[323265724,1713857447217,-575.06,0.00011997,2]
[323265725,1713857447227,-500.0,0.00011997,2]
[323265726,1713857447237,-500.0,0.00011997,2]
[323265727,1713857447246,-308.18095975,0.00011997,2]
[323265728,1713857447257,-574.08,0.00011997,2]
[323265729,1713857447266,-500.0,0.00011997,2]
[323265730,1713857447275,-500.0,0.00011997,2]
[323265731,1713857447285,-500.0,0.00011997,2]
[323265732,1713857447294,-500.0,0.00011997,2]
[323265733,1713857447304,-500.0,0.00011997,2]
[323265734,1713857447314,-500.0,0.00011997,2]
[323265735,1713857447324,-500.0,0.00011997,2]
[323265736,1713857447336,-500.0,0.00011997,2]
[323265737,1713857447346,-576.39,0.00011997,2]
[323265738,1713857447355,-500.0,0.00011997,2]
[323265739,1713857447365,-500.0,0.00011997,2]
[323265740,1713857447376,-953.29,0.00011997,2]
[323265741,1713857447385,-500.0,0.00011997,2]
[323265742,1713857447395,-500.0,0.00011997,2]
[323265743,1713857447405,-873.03,0.00011997,2]
[323265744,1713857447415,-500.0,0.00011997,2]
[323265745,1713857447424,-500.0,0.00011997,2]
[323265746,1713857447433,-500.0,0.00011997,2]
[323265747,1713857447443,-500.0,0.00011997,2]
[323265748,1713857447452,-500.0,0.00011997,2]
[323265749,1713857447461,-610.84897656,0.00011997,2]
[323265750,1713857447471,-500.0,0.00011997,2]
[323265751,1713857447481,-500.0,0.00011997,2]
[323265752,1713857447490,-500.0,0.00011997,2]
[323265753,1713857447499,-500.0,0.00011997,2]
[323265754,1713857447508,-500.0,0.00011997,2]
[323265755,1713857447517,-500.0,0.00011997,2]
[323265756,1713857447527,-500.0,0.00011997,2]
[323265757,1713857447536,-504.17834275,0.00011997,2]
[323265758,1713857447545,-524.35353056,0.00011997,2]
[323265759,1713857447555,-1072.52,0.00011997,2]
[323265760,1713857447565,-508.57551046,0.00011997,2]
[323265761,1713857447573,-1077.28,0.00011997,2]
[323265762,1713857447582,-500.0,0.00011997,2]
[323265763,1713857447591,-500.0,0.00011997,2]
[323265764,1713857447601,-500.0,0.00011997,2]
[323265765,1713857447610,-500.0,0.00011997,2]
[323265766,1713857447619,-506.57342914,0.00011997,2]
[323265767,1713857447629,-500.0,0.00011997,2]
[323265768,1713857447638,-500.0,0.00011997,2]
[323265769,1713857447647,-500.0,0.00011997,2]
[323265770,1713857447657,-500.0,0.00011997,2]
[323265771,1713857447667,-522.45051832,0.00011997,2]
[323265772,1713857447677,-2521.28,0.00011997,2]
[323265773,1713857447686,-500.0,0.00011997,2]
[323265774,1713857447695,-500.0,0.00011997,2]
[323265775,1713857447704,-500.0,0.00011997,2]
[323265776,1713857447713,-960.49,0.00011997,2]
[323265777,1713857447723,-500.0,0.00011997,2]
[323265778,1713857447732,-500.0,0.00011997,2]
[323265779,1713857447741,-675.4,0.00011997,2]
[323265780,1713857447750,-3868.84,0.00011997,2]
[323265781,1713857447760,-1282.77,0.00011997,2]
[323265782,1713857447838,-863.55,0.00011997,2]
[323265783,1713857447847,-500.0,0.00011997,2]
[323265784,1713857447856,-551.61,0.00011997,2]
[323265785,1713857447865,-500.0,0.00011997,2]
[323265786,1713857447874,-500.0,0.00011997,2]
[323265787,1713857447883,-1123.69,0.00011997,2]
[323265788,1713857447893,-500.0,0.00011997,2]
[323265789,1713857447903,-346.890571,0.00011997,2]
[323265790,1713857447914,-500.0,0.00011997,2]
[323265791,1713857447924,-1347.52,0.00011997,2]
[323265792,1713857447933,-500.0,0.00011997,2]
[323265793,1713857447944,-499.97953853,0.00011997,2]
[323265794,1713857447953,-500.0,0.00011997,2]
[323265795,1713857447962,-642.31924095,0.00011997,2]
[323265796,1713857447971,-232.52079518,0.00011997,2]
[323265797,1713857447980,-1361.85,0.00011997,2]
[323265798,1713857447989,-500.0,0.00011997,2]
[323265799,1713857447997,-1797.12,0.00011997,2]
[323265800,1713857448007,-500.0,0.00011997,2]
[323265801,1713857448016,-230.34432865,0.00011997,2]
[323265802,1713857448025,-500.0,0.00011997,2]
[323265803,1713857448034,-500.0,0.00011997,2]
[323265804,1713857448043,-984.4,0.00011997,2]
[323265805,1713857448052,-1100.69,0.00011997,2]
[323265806,1713857448061,-500.0,0.00011997,2]
[323265807,1713857448071,-500.0,0.00011997,2]
[323265808,1713857448080,-177.64718592,0.00011997,2]
[323265809,1713857448089,-1114.6,0.00011997,2]
[323265810,1713857448098,-500.0,0.00011997,2]
[323265811,1713857448108,-500.0,0.00011997,2]
[323265812,1713857448117,-500.0,0.00011997,2]
[323265813,1713857448126,-587.72,0.00011997,2]
[323265814,1713857448137,-530.47,0.00011997,2]
[323265815,1713857448147,-658.23,0.00011997,2]
[323265816,1713857448156,-502.14641725,0.00011997,2]
[323265817,1713857448165,-621.66,0.00011997,2]
[323265818,1713857448174,-834.41,0.00011997,2]
[323265819,1713857448184,-500.0,0.00011997,2]
[323265820,1713857448193,-500.0,0.00011997,2]
[323265821,1713857448203,-500.0,0.00011997,2]
[323265822,1713857448212,-500.0,0.00011997,2]
[323265823,1713857448222,-939.61,0.00011997,2]
[323265824,1713857448232,-500.0,0.00011997,2]
[323265825,1713857448241,-509.60518883,0.00011997,2]
[323265826,1713857448253,-990.11,0.00011997,2]
[323265827,1713857448264,-500.0,0.00011997,2]
[323265828,1713857448273,-500.0,0.00011997,2]
[323265829,1713857448282,-500.0,0.00011997,2]
[323265830,1713857448292,-284.18477982,0.00011997,2]
[323265831,1713857448302,-500.0,0.00011997,2]
[323265832,1713857448311,-501.06601173,0.00011997,2]
[323265833,1713857448322,-500.0,0.00011997,2]
[323265834,1713857448336,-655.5,0.00011997,2]
[323265835,1713857448345,-454.42209009,0.00011997,2]
[323265836,1713857448356,-1109.59,0.00011997,2]
[323265837,1713857448366,-500.0,0.00011997,2]
[323265838,1713857448375,-500.0,0.00011997,2]
[323265839,1713857448384,-500.0,0.00011997,2]
[323265840,1713857448393,-504.38295131,0.00011997,2]
[323265841,1713857448403,-500.0,0.00011997,2]
[323265842,1713857448412,-1104.43,0.00011997,2]
[323265843,1713857448421,-577.62,0.00011997,2]
[323265844,1713857448430,-1357.16,0.00011997,2]
[323265845,1713857448439,-674.72,0.00011997,2]
[323265846,1713857448447,-500.0,0.00011997,2]
[323265847,1713857448457,-500.0,0.00011997,2]
[323265848,1713857448466,-500.0,0.00011997,2]
[323265849,1713857448475,-500.0,0.00011997,2]
[323265850,1713857448484,-500.0,0.00011997,2]
[323265851,1713857448494,-500.0,0.00011997,2]
[323265852,1713857448503,-500.0,0.00011997,2]
[323265853,1713857448512,-500.0,0.00011997,2]
[323265854,1713857448521,-500.0,0.00011997,2]
[323265855,1713857448530,-500.0,0.00011997,2]
[323265856,1713857448540,-500.0,0.00011997,2]
[323265857,1713857448549,-553.89,0.00011997,2]
[323265858,1713857448558,-500.0,0.00011997,2]
[323265859,1713857448568,-500.0,0.00011997,2]
[323265860,1713857448578,-500.0,0.00011997,2]
[323265861,1713857448589,-500.0,0.00011997,2]
[323265862,1713857448599,-500.0,0.00011997,2]
[323265863,1713857448609,-490.58382946,0.00011997,2]
[323265864,1713857448620,-500.0,0.00011997,2]
[323265865,1713857448630,-500.0,0.00011997,2]
[323265866,1713857448640,-500.0,0.00011997,2]
[323265867,1713857448650,-345.63280796,0.00011997,2]
[323265868,1713857448660,-12380.47,0.00011997,2]
[323265869,1713857448672,-500.0,0.00011997,2]
[323265870,1713857448682,-502.44304689,0.00011997,2]
[323265871,1713857448692,-500.0,0.00011997,2]
[323265872,1713857448702,-500.0,0.00011997,2]
[323265873,1713857448712,-1843.41,0.00011997,2]
[323265874,1713857448722,-501.65040393,0.00011997,2]
[323265875,1713857448732,-2342.41,0.00011997,2]
[323265876,1713857448742,-200.0,0.00011997,2]
[323265877,1713857448752,-500.0,0.00011997,2]
[323265878,1713857448762,-307.47733873,0.00011997,2]
[323265879,1713857448772,-504.4,0.00011997,2]
[323265880,1713857448782,-472.04503295,0.00011997,2]
[323265881,1713857448792,-500.0,0.00011997,2]
[323265882,1713857448802,-500.0,0.00011998,2]
[323265883,1713857448812,-500.0,0.00011998,2]
[323265884,1713857448822,-500.0,0.00011998,2]
[323265885,1713857448831,-500.0,0.00011998,2]
[323265886,1713857448841,-502.00547704,0.00011998,2]
[323265887,1713857448851,-500.0,0.00011998,2]
[323265888,1713857448861,-500.0,0.00011998,2]
[323265889,1713857448871,-500.0,0.00011998,2]
[323265890,1713857448881,-500.0,0.00011998,2]
[323265891,1713857448890,-500.0,0.00011998,2]
[323265892,1713857448900,-228.81477179,0.00011998,2]
[323265893,1713857448910,-500.0,0.00011998,2]
[323265894,1713857448920,-500.0,0.00011998,2]
[323265895,1713857448929,-500.0,0.00011998,2]
[323265896,1713857448939,-500.78717882,0.00011998,2]
[323265897,1713857448949,-500.0,0.00011998,2]
[323265898,1713857448958,-500.0,0.00011998,2]
[323265899,1713857448968,-500.0,0.00011998,2]
[323265900,1713857448978,-508.37160205,0.00011998,2]
[323265901,1713857448987,-500.0,0.00011998,2]
[323265902,1713857448997,-500.0,0.00011998,2]
[323265903,1713857449007,-500.0,0.00011998,2]
[323265904,1713857449017,-500.10424001,0.00011998,2]
[323265905,1713857449027,-500.0,0.00011998,2]
[323265906,1713857449036,-500.0,0.00011998,2]
[323265907,1713857449047,-500.0,0.00011998,2]
[323265908,1713857449056,-512.30555231,0.00011998,2]
[323265909,1713857449066,-503.86744921,0.00011998,2]
[323265910,1713857449076,-501.00773788,0.00011998,2]
[323265911,1713857449086,-501.57748196,0.00011998,2]
[323265912,1713857449096,-500.0,0.00011998,2]
[323265913,1713857449106,-501.49730624,0.00011998,2]
[323265914,1713857449116,-501.00535438,0.00011998,2]
[323265915,1713857449126,-501.05352624,0.00011998,2]
[323265916,1713857449135,-581.16440637,0.00011998,2]
[323265917,1713857449145,-500.0,0.00011998,2]
[323265918,1713857449156,-500.0,0.00011998,2]
[323265919,1713857449166,-500.93639206,0.00011998,2]
[323265920,1713857449176,-501.13845245,0.00011998,2]
[323265921,1713857449186,-504.39907066,0.00011998,2]
[323265922,1713857449196,-501.43562658,0.00011998,2]
[323265923,1713857449206,-501.26454911,0.00011998,2]
[323265924,1713857449216,-500.0,0.00011998,2]
[323265925,1713857449226,-500.0,0.00011998,2]
[323265926,1713857449236,-501.5742417,0.00011998,2]
[323265927,1713857449246,-497.28569272,0.00011998,2]
[323265928,1713857449256,-500.68121682,0.00011998,2]
[323265929,1713857449266,-500.46966524,0.00011998,2]
[323265930,1713857449276,-502.27552408,0.00011998,2]
[323265931,1713857449286,-502.71766854,0.00011998,2]
[323265932,1713857449296,-647.16862324,0.00011998,2]
[323265933,1713857449306,-501.93944528,0.00011998,2]
[323265934,1713857449317,-500.0,0.00011998,2]
[323265935,1713857449328,-500.0,0.00011998,2]
[323265936,1713857449342,-500.0,0.00011998,2]
[323265937,1713857449353,-500.0,0.00011998,2]
[323265938,1713857449362,-500.0,0.00011998,2]
[323265939,1713857449373,-500.0,0.00011998,2]
[323265940,1713857449383,-500.0,0.00011998,2]
[323265941,1713857449393,-501.34411311,0.00011998,2]
[323265942,1713857449402,-500.0,0.00011998,2]
[323265943,1713857449415,-500.0,0.00011998,2]
[323265944,1713857449426,-500.0,0.00011998,2]
[323265945,1713857449436,-500.0,0.00011998,2]
[323265946,1713857449446,-500.0,0.00011998,2]
[323265947,1713857449456,-564.9056109,0.00011998,2]
[323265948,1713857449466,-500.0,0.00011998,2]
[323265949,1713857449476,-500.0,0.00011998,2]
[323265950,1713857449485,-500.0,0.00011998,2]
[323265951,1713857449495,-500.0,0.00011998,2]
[323265952,1713857449506,-550.6623816,0.00011998,2]
[323265953,1713857449516,-544.75566143,0.00011998,2]
[323265954,1713857449526,-450.42445734,0.00011998,2]
[323265955,1713857449536,-504.9089077,0.00011998,2]
[323265956,1713857449546,-500.0,0.00011998,2]
[323265957,1713857449557,-500.0,0.00011998,2]
[323265958,1713857449567,-352.55460564,0.00011998,2]
[323265959,1713857449578,-500.0,0.00011998,2]
[323265960,1713857449588,-500.0,0.00011998,2]
[323265961,1713857449599,-500.0,0.00011998,2]
[323265962,1713857449609,-500.0,0.00011998,2]
[323265963,1713857449619,-1192.83,0.00011998,2]
[323265964,1713857449629,-503.65569498,0.00011998,2]
[323265965,1713857449639,-571.85716188,0.00011998,2]
[323265966,1713857449649,-440.83088459,0.00011998,2]
[323265967,1713857449659,-381.09178789,0.00011998,2]
[323265968,1713857449671,-500.0,0.00011998,2]
[323265969,1713857449681,-252.59991005,0.00011998,2]
[323265970,1713857449694,-500.0,0.00011998,2]
[323265971,1713857449710,-500.0,0.00011998,2]
[323265972,1713857449724,-500.0,0.00011998,2]
[323265973,1713857449738,-186.12444725,0.00011998,2]
[323265974,1713857449751,-500.0,0.00011998,2]
[323265975,1713857449765,-502.15427298,0.00011998,2]
[323265976,1713857449779,-500.0,0.00011998,2]
[323265977,1713857449793,-500.0,0.00011998,2]
[323265978,1713857449807,-500.0,0.00011998,2]
[323265979,1713857449820,-514.22887567,0.00011998,2]
[323265980,1713857449832,-500.76832599,0.00011998,2]
[323265981,1713857449844,-500.0,0.00011998,2]
[323265982,1713857449857,-544.95,0.00011998,2]
[323265983,1713857449870,-500.0,0.00011998,2]
[323265984,1713857449882,-500.0,0.00011998,2]
[323265985,1713857449896,-488.04174642,0.00011998,2]
[323265986,1713857449908,-617.07912279,0.00011998,2]
[323265987,1713857449921,-383.20615218,0.00011998,2]
[323265988,1713857449937,-500.0,0.00011998,2]
[323265989,1713857449949,-500.0,0.00011998,2]
[323265990,1713857449963,-500.0,0.00011998,2]
[323265991,1713857449975,-931.74,0.00011998,2]
[323265992,1713857449988,-181.8274801,0.00011998,2]
[323265993,1713857449999,-500.0,0.00011998,2]
[323265994,1713857450012,-537.31763598,0.00011998,2]
[323265995,1713857450025,-500.0,0.00011998,2]
[323265996,1713857450039,-874.5,0.00011998,2]
[323265997,1713857450053,-607.91277987,0.00011998,2]
[323265998,1713857450067,-500.0,0.00011998,2]
[323265999,1713857450080,-500.0,0.00011998,2]
[323266000,1713857450090,-500.0,0.00011998,2]
[323266001,1713857450101,-810.67,0.00011998,2]
[323266002,1713857450113,-267.45,0.00011998,2]
[323266003,1713857450126,-502.10341364,0.00011998,2]
[323266004,1713857450137,-503.66836272,0.00011998,2]
[323266005,1713857450150,-544.47,0.00011998,2]
[323266006,1713857450165,-500.0,0.00011998,2]
[323266007,1713857450176,-500.0,0.00011998,2]
[323266008,1713857450188,-241.11326682,0.00011998,2]
[323266009,1713857450200,-500.0,0.00011998,2]
[323266010,1713857450212,-500.0,0.00011998,2]
[323266011,1713857450224,-500.0,0.00011998,2]
[323266012,1713857450236,-500.0,0.00011998,2]
[323266013,1713857450248,-500.0,0.00011998,2]
[323266014,1713857450259,-500.0,0.00011998,2]
[323266015,1713857450271,-614.2751975,0.00011998,2]
[323266016,1713857450283,-500.0,0.00011998,2]
[323266017,1713857450294,-500.0,0.00011998,2]
[323266018,1713857450307,-614.19385089,0.00011998,2]
[323266019,1713857450319,-500.0,0.00011998,2]
[323266020,1713857450334,-500.0,0.00011998,2]
[323266021,1713857450346,-531.43,0.00011998,2]
[323266022,1713857450358,-531.43,0.00011998,2]
[323266023,1713857450370,-500.0,0.00011998,2]
[323266024,1713857450381,-500.0,0.00011998,2]
[323266025,1713857450392,-500.0,0.00011998,2]
[323266026,1713857450405,-500.0,0.00011998,2]
[323266027,1713857450421,-500.0,0.00011998,2]
[323266028,1713857450433,-500.0,0.00011998,2]
[323266029,1713857450445,-500.0,0.00011998,2]
[323266030,1713857450457,-500.0,0.00011998,2]
[323266031,1713857450469,-500.0,0.00011998,2]
[323266032,1713857450480,-500.0,0.00011998,2]
[323266033,1713857450492,-500.0,0.00011998,2]
[323266034,1713857450503,-1019.6,0.00011998,2]
[323266035,1713857450515,-500.0,0.00011998,2]
[323266036,1713857450526,-500.0,0.00011998,2]
[323266037,1713857450538,-500.0,0.00011998,2]
[323266038,1713857450550,-500.0,0.00011998,2]
[323266039,1713857450562,-611.62,0.00011998,2]
[323266040,1713857450573,-500.0,0.00011998,2]
[323266041,1713857450589,-198.41065659,0.00011998,2]
[323266042,1713857450600,-654.13,0.00011998,2]
[323266043,1713857450613,-1151.93,0.00011998,2]
[323266044,1713857450624,-512.32067756,0.00011998,2]
[323266045,1713857450637,-500.0,0.00011998,2]
[323266046,1713857450649,-500.0,0.00011998,2]
[323266047,1713857450661,-531.43,0.00011999,2]
[323266048,1713857450677,-531.43,0.00011999,2]
[323266049,1713857450690,-8000.0,0.00012,2]
[323266050,1713857450703,-8000.0,0.00012,2]
[323266051,1713857450715,-1050.78,0.00012,2]
[323266052,1713857450727,-418.29,0.00012,2]
[323266053,1713857450740,-150.0,0.00012,2]
[323266054,1713857450752,-153.43,0.00012,2]
[323266055,1713857450764,-700.66,0.00012,2]
[323266056,1713857450777,-150.0,0.00012,2]
[323266057,1713857450790,-836.24,0.00012,2]
[323266058,1713857450802,-1819.66,0.00012,2]
[323266059,1713857450815,-250.0,0.00012,2]
[323266060,1713857450827,-250.0,0.00012,2]
[323266061,1713857450840,-1750.0,0.00012,2]
[323266062,1713857450853,-8000.0,0.0001201,2]
[323266063,1713857450865,-8000.0,0.0001201,2]
[323266064,1713857450877,-8000.0,0.0001202,2]
[323266065,1713857450890,-3666.95101182,0.0001203,2]
[323266066,1713857452433,-631.86,0.00011995,2]
[323266067,1713857452442,-39.24229479,0.00011995,2]
[323266068,1713857452454,-500.0,0.00011995,2]
[323266069,1713857452483,-87.26365956,0.00011995,2]
[323266070,1713857452492,-182.48733633,0.0001203,2]
[323266071,1713857452629,-387.09501446,0.00011996,2]
[323266072,1713857453901,-500.0,0.00011995,2]
[323266073,1713857453910,-26.88,0.00011995,2]
[323266074,1713857453924,-612.75,0.00011995,2]
[323266075,1713857453934,-59.4022,0.00011995,2]
[323266076,1713857454009,-440.5978,0.00011995,2]
[323266077,1713857454018,-796.73045186,0.00011995,2]
[323266078,1713857454029,-207.63954814,0.00011995,2]
[323266079,1713857454039,-70.91941953,0.00011996,2]
[323266080,1713857454048,-500.0,0.00011996,2]
[323266081,1713857454057,-504.9478846,0.00011997,2]
[323266082,1713857454067,-4150.56165185,0.0001203,2]
[323266083,1713857454076,-468.01235797,0.00012034,2]
[323266084,1713857454085,-150.0,0.00012127,2]
[323266085,1713857454095,-150.0,0.00012132,2]
[323266086,1713857454104,-150.0,0.00012147,2]
[323266087,1713857454113,-150.0,0.00012161,2]
[323266088,1713857454122,-150.0,0.00012167,2]
[323266089,1713857454131,-2876.08318138,0.0001217,2]
[323266090,1713857454141,-181.04995257,0.0001217,2]
[323266091,1713857454150,-468.01235797,0.00012171,2]
[323266092,1713857454159,-177.05834528,0.00012171,2]
[323266093,1713857454173,-150.0,0.0001218,2]
[323266094,1713857454182,-150.0,0.00012193,2]
[323266095,1713857454193,-2231.714334,0.000122,2]
[323266096,1713857454203,-1500.0,0.00012214,2]
[323266097,1713857454212,-150.0,0.00012217,2]
[323266098,1713857454221,-150.0,0.00012218,2]
[323266099,1713857454230,-150.0,0.00012226,2]
[323266100,1713857454240,-150.0,0.00012234,2]
[323266101,1713857454249,-830.91345364,0.00012236,2]
[323266102,1713857454275,-436.96236322,0.00012236,2]
[323266103,1713857454761,-363.60185113,0.00011994,2]
[323266104,1713857454771,-202.58015903,0.00011994,2]
[323266105,1713857454780,-155.0,0.00011994,2]
[323266106,1713857454789,-500.0,0.00011995,2]
[323266107,1713857454799,-500.0,0.00011995,2]
[323266108,1713857454808,-150.0,0.00012215,2]
[323266109,1713857454819,-1608.20736448,0.00012236,2]
[323266110,1713857454829,-150.0,0.00012237,2]
[323266111,1713857454839,-150.0,0.00012238,2]
[323266112,1713857454848,-1500.0,0.00012242,2]
[323266113,1713857454857,-1292.4508,0.00012247,2]
[323266114,1713857454866,-7292.15982536,0.00012247,2]
[323266115,1713857454957,-264.34647283,0.00011995,2]
[323266116,1713857518699,692.41,0.00011209,2]
[323266117,1713857523714,535.68,9.293e-05,2]
[323266118,1713857610034,10000.0,0.0001121,2]
[323266119,1713857620216,10000.0,0.0001121,2]
[323266120,1713857632843,10000.0,0.0001121,2]
[323266121,1713857640207,10000.0,0.0001121,2]
[323266122,1713857648285,697.84228548,0.0001121,2]
[323266123,1713857652581,387.93,0.00011131,2]
[323266124,1713857699199,166.2,0.00011131,2]
[323266125,1713857703820,10000.0,0.00011201,2]
[323266126,1713857773791,3757.0,0.00011201,2]
[323266127,1713857829695,-262.77,0.0001957,15]
[323266128,1713857829720,-150.5,0.00019585,15]
[323266129,1713857829743,-49586.73,0.000199,15]
[323266130,1713857837090,241.33,0.00011116,2]
[323266131,1713857838096,156.19,0.00011199,2]
[323266132,1713857853421,158.88,0.00011104,2]
[323266133,1713857854627,-50000.0,0.000199,15]
[323266134,1713857873669,-100000.0,0.000199,15]
[323266135,1713857908935,170.38,0.00011113,2]
[323266136,1713857909393,150.0,0.00011113,2]
[323266137,1713857965695,-100000.0,0.000199,15]
[323266139,1713857988765,-200000.0,0.000199,15]
[323266140,1713857990078,446.07,0.00011076,2]
[323266141,1713858045730,508.89,9.18e-05,2]
[323266142,1713858095753,1000.0,0.00025,120]
[323266143,1713858120318,-200000.0,0.000199,15]
[323266145,1713858185712,1657.92,0.00011089,2]
[323266149,1713858329071,156.19,0.00011153,2]
[323266180,1713858338625,220.67,0.00011101,2]
[323266181,1713858376182,169.38,0.0001107,2]
[323266200,1713858470426,643.14,0.0001103,2]
[323266213,1713858632365,-155.0,0.00011424,2]
[323266214,1713858632374,-155.0,0.00011425,2]
[323266215,1713858632384,-388.40593279,0.00011443,2]
[323266216,1713858632399,-1658.93723493,0.00011443,2]
[323266217,1713858632411,-1033.54707457,0.00011443,2]
[323266218,1713858632420,-328.12971743,0.00011444,2]
[323266219,1713858632439,-180.76028257,0.00011444,2]
[323266220,1713858632449,-481.15971743,0.00011554,2]
[323266221,1713858632528,-3443.15151043,0.00011554,2]
[323266222,1713858632538,-177.48,0.00011578,2]
[323266223,1713858632547,-876.59854396,0.00011885,2]
[323266224,1713858632556,-150.0,0.00011894,2]
[323266225,1713858632566,-187.20494322,0.00011895,2]
[323266226,1713858632575,-89.8577372,0.00011895,2]
[323266227,1713858632602,-361.4198628,0.00011895,2]
[323266228,1713858632611,-1688.1877372,0.00011895,2]
[323266248,1713858638300,-1349.90711029,0.00011895,2]
[323266256,1713858638408,-4096.56516886,0.00011895,2]
[323266257,1713858638517,-11236.44842664,0.00011895,2]
[323266258,1713858638529,-520.40982313,0.00011895,2]
[323266259,1713858638574,-33106.62,0.00011895,2]
[323266260,1713858638630,-19720.03393388,0.00011895,2]
[323266261,1713858638639,-299.99,0.00011895,2]
[323266262,1713858638650,-1000.0,0.00011896,2]
[323266263,1713858638659,-3100.37,0.00011896,2]
[323266264,1713858638668,-2506.21574781,0.000119,2]
[323266265,1713858638677,-1242.78802869,0.00011983,2]